[Event "African Online-ch Open 2021"]
[Site "Online"]
[Date "2021.02.01"]
[Round "7.20"]
[White "Libe, Sofonea"]
[Black "Kamara, Ansumana"]
[Result "1/2-1/2"]
[ECO "A16"]
[WhiteElo "1509"]
[BlackElo "1899"]
[Annotator "NA RC"]
[PlyCount "186"]
[EventDate "2021.02.01"]
[EventType "swiss"]
[EventCountry "NET"]
[SourceTitle "playchess.com"]
[Source "ChessBase"]
[SourceQuality "1"]
[TimeControl "1500+10"]

1. c4 {[%emt 0:00:00]} Nf6 {[%emt 0:00:07]} 2. g3 {[%emt 0:00:08]} g6 {[%emt 0:00:03]} 3. Bg2 {[%emt 0:00:03]} Bg7 {[%emt 0:00:02]} 4. Nc3 {[%emt 0:00:03]} c6 {[%emt 0:00:03]} 5. e4 {[%emt 0:00:02]} e5 {[%emt 0:00:06]} 6. Nge2 {[%emt 0:00:06]} d6 {[%emt 0:00:06]} 7. d3 {[%emt 0:00:07]} Nbd7 {[%emt 0:00:04]} 8. Be3 {[%emt 0:00:02]} Nb6 {[%emt 0:00:04]} 9. h3 {[%emt 0:00:07]} O-O {[%emt 0:00:24]} 10. a4 {[%emt 0:00:03]} Nbd7 {[%emt 0:00:36]} 11. O-O {[%emt 0:00:03]} b6 {[%emt 0:00:10]} 12. Qd2 {[%emt 0:00:10]} Qc7 {[%emt 0:00:09]} 13. Bh6 {[%emt 0:01:31]} Nc5 {[%emt 0:00:07]} 14. Nc1 {[%emt 0:00:42]} Be6 {[%emt 0:01:14]} 15. Bxg7 {[%emt 0:00:08]} Kxg7 {[%emt 0:00:06]} 16. b4 {[%emt 0:00:03]} Nb7 {[%emt 0:00:14]} 17. N1e2 {[%emt 0:00:23]} Qd7 {[%emt 0:00:10]} 18. Kh2 {[%emt 0:00:03]} Nh5 {[%emt 0:00:15]} 19. f4 {[%emt 0:00:06]} exf4 {[%emt 0:00:13]} 20. Nxf4 {[%emt 0:00:07]} Nxf4 {[%emt 0:00:03]} 21. Rxf4 {[%emt 0:00:05]} f5 {[%emt 0:00:05]} 22. Raf1 {[%emt 0:00:04]} Rf7 {[%emt 0:00:29]} 23. b5 {[%emt 0:00:21]} c5 {[%emt 0:00:42]} 24. exf5 {[%emt 0:00:22]} Bxf5 {[%emt 0:00:11]} 25. Nd5 {[%emt 0:00:14]} Raf8 {[%emt 0:00:11]} 26. Qc3+ {[%emt 0:01:10]} Kg8 {[%emt 0:00:10]} 27. g4 {[%emt 0:00:12]} Be6 {[%emt 0:01:31]} 28. Nf6+ {[%emt 0:00:25]} Rxf6 {[%emt 0:00:07]} 29. Rxf6 {[%emt 0:00:02]} Re8 {[%emt 0:00:42]} 30. Bc6 {[%emt 0:01:13] Skewer} Qe7 {[%emt 0:00:26]} 31. Bxe8 {[%emt 0:00:07]} Qxe8 {[%emt 0:00:06]} 32. Qd2 {[%emt 0:00:25]} Nd8 {[%emt 0:00:16]} 33. Qe3 {[%emt 0:03:06]} Qd7 {[%emt 0:01:23]} 34. Qf4 {[%emt 0:04:30]} Kg7 {[%emt 0:03:32]} 35. d4 {[%emt 0:00:46]} Bxc4 {[%emt 0:01:12]} 36. Rxd6 {[%emt 0:00:10]} Qe7 {[%emt 0:00:12]} 37. Rf3 {[%emt 0:01:24]} Nf7 {[%emt 0:04:05]} 38. Re3 {[%emt 0:01:18]} Qxd6 {[%emt 0:00:18]} 39. Qxd6 {[%emt 0:00:15]} Nxd6 {[%emt 0:00:05]} 40. dxc5 {[%emt 0:00:05]} bxc5 {[%emt 0:00:05]} 41. Re7+ {[%emt 0:00:05]} Bf7 $2 {[%emt 0:00:10]} (41... Kf6 42. Rxa7 Bd5) 42. Rxa7 {[%emt 0:00:03]} c4 {[%emt 0:00:04]} 43. Rc7 {[%emt 0:00:06]} Kf6 {[%emt 0:00:16]} 44. b6 {[%emt 0:00:03]} Bd5 {[%emt 0:00:06]} 45. a5 {[%emt 0:00:04]} Bb7 {[%emt 0:00:10]} 46. Rxb7 {[%emt 0:00:54]} Nxb7 {[%emt 0:01:31]} 47. a6 {[%emt 0:00:05]} c3 {[%emt 0:00:03]} 48. axb7 {[%emt 0:00:05]} c2 {[%emt 0:00:03]} 49. b8=Q {[%emt 0:00:09]} c1=Q {[%emt 0:00:05]} 50. Qd6+ {[%emt 0:00:04]} Kg5 {[%emt 0:00:24]} 51. Qe7+ {[%emt 0:00:12]} Kh6 {[%emt 0:00:05]} 52. g5+ {[%emt 0:00:26]} (52. b7 $142 Qf4+ 53. Kg2 Qb8 54. Kf3 Qg8 55. Qe3+ g5 56. Qb6+ Kg7 57. Qb2+ Kg6 58. b8=Q) 52... Kh5 {[%emt 0:00:07]} 53. Qxh7+ {[%emt 0:00:12]} Kxg5 {[%emt 0:00:03]} 54. Qe7+ {[%emt 0:00:04]} Kh5 {[%emt 0:00:07]} 55. Qe5+ {[%emt 0:00:53]} Kh6 {[%emt 0:00:16]} 56. Qd4 {[%emt 0:00:49]} Qc2+ {[%emt 0:00:37]} 57. Kg3 {[%emt 0:00:10]} Qb3+ {[%emt 0:00:13]} 58. Kf2 {[%emt 0:00:26]} Qc2+ {[%emt 0:00:13]} 59. Kf3 {[%emt 0:00:07]} g5 {[%emt 0:00:35]} 60. Qf6+ {[%emt 0:00:28]} Kh5 {[%emt 0:00:12]} 61. Qf7+ {[%emt 0:00:23]} Kh4 {[%emt 0:00:34]} 62. Qc7 {[%emt 0:01:41]} Qb3+ {[%emt 0:00:18]} 63. Ke4 {[%emt 0:00:05]} Qe6+ {[%emt 0:01:17]} 64. Kd4 {[%emt 0:00:13]} Qf6+ {[%emt 0:00:10]} 65. Kc5 {[%emt 0:00:12]} Qf2+ {[%emt 0:00:47]} 66. Kc6 {[%emt 0:00:25]} Qf3+ {[%emt 0:00:11]} 67. Kb5 {[%emt 0:00:05]} Qb3+ {[%emt 0:00:13]} 68. Ka6 {[%emt 0:00:10]} Qa4+ {[%emt 0:00:07]} 69. Kb7 {[%emt 0:00:08]} Kxh3 {[%emt 0:00:06]} 70. Kb8 {[%emt 0:01:01]} g4 {[%emt 0:00:29]} 71. b7 {[%emt 0:00:12]} g3 {[%emt 0:00:26]} 72. Qh7+ {[%emt 0:00:11]} Kg4 {[%emt 0:00:18]} 73. Kc8 {[%emt 0:00:14]} Qe8+ {[%emt 0:00:43]} 74. Kc7 {[%emt 0:00:15]} Qe5+ {[%emt 0:00:07]} 75. Kc8 {[%emt 0:00:25]} Qe8+ {[%emt 0:00:31]} 76. Kc7 {[%emt 0:00:12]} Qe5+ {[%emt 0:00:08]} 77. Kb6 {[%emt 0:00:23]} g2 {[%emt 0:01:33]} 78. Qg8+ {[%emt 0:00:26]} Qg5 {[%emt 0:00:38]} 79. b8=Q {[%emt 0:00:33]} g1=Q+ {[%emt 0:00:21]} 80. Ka6 {[%emt 0:01:14]} Qa1+ {[%emt 0:00:13]} 81. Kb7 {[%emt 0:00:13]} Qb2+ {[%emt 0:00:07]} 82. Kc6 {[%emt 0:00:22]} Qc3+ {[%emt 0:00:08]} 83. Kd6 {[%emt 0:00:42]} Qd4+ {[%emt 0:01:01]} 84. Kc7 {[%emt 0:00:22]} Qdc5+ {[%emt 0:00:42]} 85. Kb7 {[%emt 0:00:23]} Qb5+ {[%emt 0:00:24]} 86. Kc7 {[%emt 0:00:09]} Qa5+ {[%emt 0:00:21]} 87. Kb7 {[%emt 0:00:17]} Qab5+ {[%emt 0:00:18]} 88. Kc7 {[%emt 0:00:04]} Qbc5+ {[%emt 0:00:11]} 89. Kb7 {[%emt 0:00:04]} Qce7+ {[%emt 0:00:06]} 90. Ka8 {[%emt 0:00:53]} Qe4+ {[%emt 0:00:21]} 91. Ka7 $11 {[%emt 0:00:08]} Qd4+ {[%emt 0:00:09]} 92. Kb7 {[%emt 0:00:10]} Qb4+ {[%emt 0:00:05]} 93. Kc7 {[%emt 0:00:02]} Qbc5+ {[%emt 0:00:04]} 1/2-1/2

[Event "African Online-ch Open 2021"]
[Site "Online"]
[Date "2021.02.01"]
[Round "7.21"]
[White "Monaheng Motlomelo"]
[Black "Bongo Akanga Ndjila, Barthelemy"]
[Result "0-1"]
[ECO "B22"]
[WhiteElo "1538"]
[BlackElo "1803"]
[Annotator "NA RC"]
[PlyCount "66"]
[EventDate "2021.02.01"]
[EventType "swiss"]
[EventCountry "NET"]
[SourceTitle "playchess.com"]
[Source "ChessBase"]
[SourceQuality "1"]
[TimeControl "1500+10"]

1. e4 {[%emt 0:00:00]} g6 {[%emt 0:00:23]} 2. Nf3 {[%emt 0:00:25]} Bg7 {[%emt 0:00:02]} 3. d4 {[%emt 0:00:35]} c5 {[%emt 0:00:13]} 4. c3 {[%emt 0:00:40]} cxd4 {[%emt 0:00:23]} 5. cxd4 {[%emt 0:00:28]} d6 {[%emt 0:00:01]} 6. Bc4 {[%emt 0:00:32]} Nf6 {[%emt 0:00:23]} 7. Nc3 {[%emt 0:00:11]} O-O {[%emt 0:00:04]} 8. O-O {[%emt 0:00:17]} Nc6 {[%emt 0:00:33]} 9. h3 {[%emt 0:00:20]} Nxe4 {[%emt 0:00:42]} 10. Bxf7+ {[%emt 0:00:52]} Rxf7 {[%emt 0:00:04]} 11. Nxe4 {[%emt 0:00:06]} Rxf3 {[%emt 0:01:26]} 12. Qxf3 {[%emt 0:00:31]} Nxd4 {[%emt 0:00:02]} 13. Qd1 {[%emt 0:00:36]} Bf5 {[%emt 0:03:22]} 14. Be3 {[%emt 0:02:28]} Qb6 {[%emt 0:04:42]} 15. Ng3 {[%emt 0:01:09]} Be6 {[%emt 0:00:16]} 16. Re1 {[%emt 0:00:29]} Bf7 {[%emt 0:02:40]} 17. Rb1 {[%emt 0:01:04]} Bxa2 {[%emt 0:00:10]} 18. Ra1 {[%emt 0:00:06]} Bb3 {[%emt 0:00:08]} 19. Bxd4 {[%emt 0:00:28]} Bxd4 {[%emt 0:00:07]} 20. Qe2 {[%emt 0:00:27]} Rf8 {[%emt 0:00:44]} 21. Nh1 {[%emt 0:00:15]} e5 {[%emt 0:00:18]} 22. Ra3 {[%emt 0:02:02]} d5 {[%emt 0:00:45]} 23. Rea1 {[%emt 0:01:31]} Bc4 {[%emt 0:00:11]} 24. Qd2 {[%emt 0:00:36]} Qxb2 {[%emt 0:00:17]} 25. Qxb2 {[%emt 0:01:28]} Bxb2 {[%emt 0:00:11]} 26. Rxa7 {[%emt 0:00:04]} Bxa1 {[%emt 0:00:04]} 27. Rxa1 {[%emt 0:00:04]} b5 {[%emt 0:00:01]} 28. f3 {[%emt 0:00:09]} b4 {[%emt 0:00:02]} 29. Nf2 {[%emt 0:00:12]} b3 {[%emt 0:00:03]} 30. Rb1 {[%emt 0:00:07]} Rb8 {[%emt 0:00:08]} 31. Rb2 {[%emt 0:00:07]} Ra8 {[%emt 0:00:04]} 32. Nd1 {[%emt 0:00:06]} Ra1 {[%emt 0:00:03]} 33. Rd2 {[%emt 0:00:18]} b2 {[%emt 0:00:37]} 0-1

[Event "African Online-ch Open 2021"]
[Site "Online"]
[Date "2021.02.01"]
[Round "8.12"]
[White "Hamzaoui, Khalil"]
[Black "Mwashe, Philip"]
[Result "1-0"]
[ECO "E62"]
[WhiteElo "1883"]
[BlackElo "1756"]
[Annotator "NA RC"]
[PlyCount "91"]
[EventDate "2021.02.01"]
[EventType "swiss"]
[EventCountry "NET"]
[SourceTitle "playchess.com"]
[Source "ChessBase"]
[SourceQuality "1"]
[TimeControl "1500+10"]

1. Nf3 {[%emt 0:00:00]} Nf6 {[%emt 0:00:04]} 2. g3 {[%emt 0:00:05]} g6 {[%emt 0:00:03]} 3. Bg2 {[%emt 0:00:02]} Bg7 {[%emt 0:00:02]} 4. O-O {[%emt 0:00:01]} d6 {[%emt 0:00:04]} 5. d4 {[%emt 0:00:03]} O-O {[%emt 0:00:03]} 6. c4 {[%emt 0:00:02]} c6 {[%emt 0:00:43]} 7. Nc3 {[%emt 0:00:04]} d5 {[%emt 0:00:03]} 8. cxd5 {[%emt 0:01:22]} cxd5 {[%emt 0:00:05]} 9. Ne5 {[%emt 0:00:02]} e6 {[%emt 0:00:43]} 10. Bg5 {[%emt 0:01:08]} Nbd7 {[%emt 0:00:10]} 11. Qd2 {[%emt 0:00:09]} a6 {[%emt 0:00:16]} 12. Rac1 {[%emt 0:01:37]} Qb6 {[%emt 0:02:00]} 13. Na4 {[%emt 0:02:05]} Qa7 {[%emt 0:00:18]} 14. Nc5 {[%emt 0:04:22]} Nxe5 {[%emt 0:01:21]} 15. dxe5 {[%emt 0:00:13]} Nd7 {[%emt 0:00:06]} 16. Nxd7 {[%emt 0:01:36]} Bxd7 {[%emt 0:00:04]} 17. Bf6 {[%emt 0:00:03]} Rac8 {[%emt 0:00:43]} 18. h4 {[%emt 0:00:13]} Qb8 {[%emt 0:00:08]} 19. Qf4 {[%emt 0:00:10]} Bb5 {[%emt 0:00:36]} 20. h5 {[%emt 0:00:37]} Bxe2 {[%emt 0:01:18]} 21. Bxg7 {[%emt 0:00:22]} Rxc1 {[%emt 0:01:16]} 22. Rxc1 {[%emt 0:00:14]} Rc8 {[%emt 0:07:10]} 23. Rxc8+ {[%emt 0:00:12]} Qxc8 {[%emt 0:00:05]} 24. Bh6 {[%emt 0:00:28]} Qd8 {[%emt 0:00:13]} 25. hxg6 {[%emt 0:00:36]} hxg6 {[%emt 0:00:42]} 26. Bg5 {[%emt 0:00:09]} Qf8 {[%emt 0:00:19]} 27. Bf6 {[%emt 0:00:05]} Kh7 {[%emt 0:00:13]} 28. Bg5 {[%emt 0:00:43]} Qg7 {[%emt 0:00:35]} 29. Qh4+ {[%emt 0:00:05]} Kg8 {[%emt 0:00:06]} 30. Bf6 {[%emt 0:00:05]} Qh7 {[%emt 0:00:04]} 31. Qa4 {[%emt 0:00:24]} Bb5 {[%emt 0:00:16]} 32. Qa5 {[%emt 0:00:05]} Qh6 {[%emt 0:00:10]} 33. Qd8+ {[%emt 0:00:23]} Qf8 {[%emt 0:00:05]} 34. Qc7 {[%emt 0:00:03]} Bc6 {[%emt 0:00:21]} 35. Qb6 {[%emt 0:00:46]} Qh6 {[%emt 0:00:19]} 36. Qd8+ {[%emt 0:01:55]} Qf8 {[%emt 0:00:06]} 37. Qxf8+ {[%emt 0:00:02]} Kxf8 {[%emt 0:00:02]} 38. Kf1 {[%emt 0:00:03]} Ke8 {[%emt 0:00:07]} 39. Ke2 {[%emt 0:00:02]} Kd7 {[%emt 0:00:04]} 40. Kd3 {[%emt 0:00:03]} Kc7 {[%emt 0:00:05]} 41. Kd4 {[%emt 0:00:10]} b6 {[%emt 0:00:07]} 42. f4 {[%emt 0:00:04]} Kd7 {[%emt 0:00:05]} 43. g4 {[%emt 0:00:05]} Kc7 {[%emt 0:00:07]} 44. Bf1 {[%emt 0:00:09]} b5 {[%emt 0:00:07]} 45. Kc5 {[%emt 0:00:05]} Bb7 {[%emt 0:00:07]} 46. Bd3 {[%emt 0:00:06]} 1-0

[Event "African Online-ch Open 2021"]
[Site "Online"]
[Date "2021.02.01"]
[Round "8.18"]
[White "Bongo Akanga Ndjila, Barthelemy"]
[Black "Khalema, Sechaba"]
[Result "1-0"]
[ECO "D03"]
[WhiteElo "1803"]
[BlackElo "1827"]
[Annotator "NA RC"]
[PlyCount "93"]
[EventDate "2021.02.01"]
[EventType "swiss"]
[EventCountry "NET"]
[SourceTitle "playchess.com"]
[Source "ChessBase"]
[SourceQuality "1"]
[TimeControl "1500+10"]

1. d4 {[%emt 0:00:00]} d5 {[%emt 0:00:16]} 2. Nf3 {[%emt 0:00:50]} Nf6 {[%emt 0:00:05]} 3. Bg5 {[%emt 0:00:39]} e6 {[%emt 0:00:20]} 4. e3 {[%emt 0:00:39]} c5 {[%emt 0:00:05]} 5. Nbd2 {[%emt 0:00:23]} Nc6 {[%emt 0:00:08]} 6. c3 {[%emt 0:00:04]} Qb6 {[%emt 0:00:10]} 7. Qc2 {[%emt 0:00:22]} Be7 {[%emt 0:00:04]} 8. Bd3 {[%emt 0:01:13]} h6 {[%emt 0:01:11]} 9. Bh4 {[%emt 0:00:06]} Bd7 {[%emt 0:00:50]} 10. Ne5 {[%emt 0:01:37]} Rc8 {[%emt 0:01:34]} 11. Nxd7 {[%emt 0:00:19]} Nxd7 {[%emt 0:00:13]} 12. Bxe7 {[%emt 0:00:12]} Nxe7 {[%emt 0:00:04]} 13. Nf3 {[%emt 0:04:10]} O-O {[%emt 0:01:40]} 14. O-O {[%emt 0:01:22]} c4 {[%emt 0:00:13]} 15. Be2 {[%emt 0:00:04]} f5 {[%emt 0:00:04]} 16. b3 {[%emt 0:00:40]} cxb3 {[%emt 0:00:07]} 17. axb3 {[%emt 0:00:03]} a6 {[%emt 0:00:05]} 18. c4 {[%emt 0:00:19]} Nf6 {[%emt 0:00:04]} 19. Ne5 {[%emt 0:00:05]} Nc6 {[%emt 0:00:17]} 20. Ng6 {[%emt 0:02:17]} Rfe8 {[%emt 0:00:30]} 21. c5 {[%emt 0:00:19]} Qc7 {[%emt 0:00:05]} 22. Bf3 {[%emt 0:01:05]} Qf7 {[%emt 0:00:10]} 23. Nf4 {[%emt 0:00:06]} g5 {[%emt 0:00:06]} 24. Nd3 {[%emt 0:00:19]} g4 {[%emt 0:00:03]} 25. Be2 {[%emt 0:00:06]} e5 {[%emt 0:00:28]} 26. dxe5 {[%emt 0:00:13]} Nxe5 {[%emt 0:00:05]} 27. Nf4 {[%emt 0:00:02]} Kg7 {[%emt 0:00:07]} 28. b4 {[%emt 0:00:05]} Nc6 {[%emt 0:00:25]} 29. b5 {[%emt 0:00:10]} axb5 {[%emt 0:00:05]} 30. Bxb5 {[%emt 0:00:03]} Ne4 {[%emt 0:01:03]} 31. Rfd1 {[%emt 0:00:22]} Red8 {[%emt 0:00:09]} 32. Qb2+ {[%emt 0:00:53]} Kh7 {[%emt 0:00:04]} 33. Rac1 {[%emt 0:06:09]} h5 {[%emt 0:01:13]} 34. Be2 {[%emt 0:00:52]} Rd7 {[%emt 0:00:19]} 35. f3 {[%emt 0:00:06]} Nf6 {[%emt 0:00:28]} 36. fxg4 {[%emt 0:00:51]} hxg4 {[%emt 0:00:05]} 37. Bd3 {[%emt 0:00:40]} Ne4 {[%emt 0:00:07]} 38. Bxe4 {[%emt 0:00:02]} dxe4 {[%emt 0:00:06]} 39. Qf2 {[%emt 0:00:42]} Rcd8 {[%emt 0:00:12]} 40. Qh4+ {[%emt 0:00:07]} Kg8 {[%emt 0:00:09]} 41. Qg5+ {[%emt 0:00:22]} Kh7 {[%emt 0:00:04]} 42. Qh4+ {[%emt 0:00:40]} Kg8 {[%emt 0:00:09]} 43. Qg5+ {[%emt 0:00:04]} Kh7 {[%emt 0:00:07]} 44. Rxd7 {[%emt 0:00:55]} Rxd7 {[%emt 0:00:07]} 45. Nh5 {[%emt 0:00:08]} Rd2 {[%emt 0:00:30]} 46. Nf6+ {[%emt 0:00:20]} Kh8 {[%emt 0:00:05]} 47. Qh6+ {[%emt 0:00:02]} 1-0

[Event "African Online-ch Open 2021"]
[Site "Online"]
[Date "2021.02.01"]
[Round "8.23"]
[White "Monaheng Motlomelo"]
[Black "Ebersohn, Raymond Gerhard"]
[Result "0-1"]
[ECO "B27"]
[WhiteElo "1538"]
[BlackElo "1726"]
[Annotator "NA RC"]
[PlyCount "56"]
[EventDate "2021.02.01"]
[EventType "swiss"]
[EventCountry "NET"]
[SourceTitle "playchess.com"]
[Source "ChessBase"]
[SourceQuality "1"]
[TimeControl "1500+10"]

1. e4 {[%emt 0:00:00]} c5 {[%emt 0:00:05]} 2. Nf3 {[%emt 0:00:12]} g6 {[%emt 0:00:05]} 3. Bc4 {[%emt 0:00:06]} Bg7 {[%emt 0:00:25]} 4. O-O {[%emt 0:00:04]} e6 {[%emt 0:00:03]} 5. Nc3 {[%emt 0:00:15]} Ne7 {[%emt 0:00:12]} 6. a3 {[%emt 0:00:10]} O-O {[%emt 0:00:09]} 7. d3 {[%emt 0:00:11]} Nbc6 {[%emt 0:00:16]} 8. Rb1 {[%emt 0:00:06]} a6 {[%emt 0:00:35]} 9. Be3 {[%emt 0:00:27]} d5 {[%emt 0:00:07]} 10. exd5 {[%emt 0:00:22]} exd5 {[%emt 0:00:03]} 11. Nxd5 {[%emt 0:00:27]} Nxd5 {[%emt 0:00:05]} 12. Bxc5 {[%emt 0:00:05]} Re8 {[%emt 0:00:13]} 13. h3 {[%emt 0:00:14]} Be6 {[%emt 0:00:55]} 14. Re1 {[%emt 0:00:22]} Rc8 {[%emt 0:00:17]} 15. Bxd5 {[%emt 0:02:36]} Qxd5 {[%emt 0:00:23]} 16. Be3 {[%emt 0:00:08]} b5 {[%emt 0:00:21]} 17. b3 {[%emt 0:00:19]} Nd4 {[%emt 0:00:34]} 18. Nxd4 {[%emt 0:00:18]} Bxd4 {[%emt 0:00:04]} 19. c4 {[%emt 0:00:04]} Qd6 {[%emt 0:00:27]} 20. Qc1 {[%emt 0:04:39]} Bf5 {[%emt 0:00:10]} 21. g4 {[%emt 0:01:25]} Bxd3 {[%emt 0:00:27]} 22. Qd2 {[%emt 0:00:36]} Bxb1 {[%emt 0:00:15]} 23. Rxb1 {[%emt 0:00:11]} Rcd8 {[%emt 0:00:11]} 24. Rd1 {[%emt 0:00:06]} Rxe3 {[%emt 0:00:04]} 25. fxe3 {[%emt 0:00:18]} Bxe3+ {[%emt 0:00:02]} 26. Qxe3 {[%emt 0:00:03]} Qxd1+ {[%emt 0:00:02]} 27. Kg2 {[%emt 0:00:03]} Rd2+ {[%emt 0:00:03]} 28. Kg3 {[%emt 0:00:08]} Rd3 {[%emt 0:00:01]} 0-1

[Event "African Online-ch Open 2021"]
[Site "Online"]
[Date "2021.02.01"]
[Round "9.21"]
[White "Khalema, Sechaba"]
[Black "Ebersohn, Raymond Gerhard"]
[Result "0-1"]
[ECO "E14"]
[WhiteElo "1827"]
[BlackElo "1726"]
[Annotator "NA RC"]
[PlyCount "72"]
[EventDate "2021.02.01"]
[EventType "swiss"]
[EventCountry "NET"]
[SourceTitle "playchess.com"]
[Source "ChessBase"]
[SourceQuality "1"]
[TimeControl "1500+10"]

1. d4 {[%emt 0:00:00]} Nf6 {[%emt 0:00:05]} 2. c4 {[%emt 0:00:49]} e6 {[%emt 0:00:02]} 3. Nf3 {[%emt 0:00:05]} Bb4+ {[%emt 0:00:03]} 4. Nbd2 {[%emt 0:00:04]} b6 {[%emt 0:00:09]} 5. e3 {[%emt 0:00:04]} Bb7 {[%emt 0:00:07]} 6. Bd3 {[%emt 0:00:04]} Ne4 {[%emt 0:00:21]} 7. O-O {[%emt 0:00:04]} Nxd2 {[%emt 0:00:04]} 8. Bxd2 {[%emt 0:00:05]} Bxd2 {[%emt 0:00:02]} 9. Nxd2 {[%emt 0:00:03]} f5 {[%emt 0:00:04]} 10. f4 {[%emt 0:00:03]} Qf6 {[%emt 0:00:12]} 11. b4 {[%emt 0:00:05]} O-O {[%emt 0:00:13]} 12. Be2 {[%emt 0:00:06]} Nc6 {[%emt 0:01:03]} 13. Bf3 {[%emt 0:00:15]} Nd8 {[%emt 0:00:30]} 14. Nb3 {[%emt 0:00:07]} Bxf3 {[%emt 0:01:05]} 15. Qxf3 {[%emt 0:00:05]} Nf7 {[%emt 0:00:02]} 16. a4 {[%emt 0:00:06]} Nd6 {[%emt 0:00:05]} 17. Rfc1 {[%emt 0:00:05]} Ne4 {[%emt 0:00:05]} 18. c5 {[%emt 0:00:08]} Rac8 {[%emt 0:00:39]} 19. Rc2 {[%emt 0:00:05]} c6 {[%emt 0:02:06]} 20. Qf1 {[%emt 0:00:15]} Rb8 {[%emt 0:01:37]} 21. b5 {[%emt 0:00:15]} Rfc8 {[%emt 0:00:30]} 22. Rac1 {[%emt 0:00:08]} cxb5 {[%emt 0:00:14]} 23. axb5 {[%emt 0:00:10]} bxc5 {[%emt 0:00:09]} 24. dxc5 {[%emt 0:00:08]} e5 {[%emt 0:00:08]} 25. Qd3 {[%emt 0:00:12]} exf4 {[%emt 0:00:23]} 26. exf4 {[%emt 0:00:04]} Qh6 {[%emt 0:02:00]} 27. g3 {[%emt 0:00:07]} Qe6 {[%emt 0:00:06]} 28. Ra1 {[%emt 0:00:48]} Rc7 {[%emt 0:00:31]} 29. Ra6 {[%emt 0:00:06]} Qe7 {[%emt 0:00:27]} 30. Rd6 {[%emt 0:01:38]} Nxd6 {[%emt 0:00:05]} 31. cxd6 {[%emt 0:00:11]} Qe1+ {[%emt 0:00:04]} 32. Kg2 {[%emt 0:00:03]} Rxc2+ {[%emt 0:00:03]} 33. Qxc2 {[%emt 0:00:03]} Qe4+ {[%emt 0:00:03]} 34. Qxe4 {[%emt 0:00:03]} fxe4 {[%emt 0:00:01]} 35. Nc5 {[%emt 0:00:03]} Rxb5 {[%emt 0:00:08]} 36. Nxd7 {[%emt 0:00:03]} Rd5 {[%emt 0:00:08]} 0-1